fUSD/lending_fUSD_20240714
["ID","MTS","AMOUNT","RATE_DAILY","PERIOD"]
[332038752,1720941049487,-650.72,0.00013698,2]
[332038754,1720941049498,-500.0,0.00013698,2]
[332038756,1720941049506,-500.0,0.00013698,2]
[332038758,1720941049515,-1217.32,0.00013698,2]
[332038760,1720941049528,-870.58,0.00013698,2]
[332038762,1720941049537,-949.29,0.00013698,2]
[332038764,1720941049546,-8252.43,0.00013698,2]
[332038766,1720941049555,-500.0,0.00013698,2]
[332038768,1720941049564,-652.77,0.00013698,2]
[332038770,1720941049573,-500.0,0.00013698,2]
[332038772,1720941049583,-990.03,0.00013698,2]
[332038774,1720941049592,-641.6,0.00013698,2]
[332038776,1720941049601,-500.0,0.00013698,2]
[332038778,1720941049611,-2208.25,0.00013698,2]
[332038780,1720941049620,-500.0,0.00013698,2]
[332038782,1720941049629,-500.0,0.00013698,2]
[332038784,1720941049640,-500.0,0.00013698,2]
[332038786,1720941049652,-541.57,0.00013698,2]
[332038788,1720941049661,-500.0,0.00013698,2]
[332038790,1720941049671,-1923.64,0.00013698,2]
[332038792,1720941049680,-500.0,0.00013698,2]
[332038794,1720941049690,-951.55,0.00013698,2]
[332038796,1720941049699,-176.54466082,0.00013698,2]
[332038798,1720941049708,-1019.06,0.00013698,2]
[332038800,1720941049717,-500.0,0.00013698,2]
[332038802,1720941049727,-500.0,0.00013698,2]
[332038804,1720941049736,-500.0,0.00013698,2]
[332038806,1720941049746,-500.0,0.00013698,2]
[332038808,1720941049756,-500.0,0.00013698,2]
[332038810,1720941049765,-758.8,0.00013698,2]
[332038812,1720941049774,-669.18,0.00013698,2]
[332038813,1720941049783,-705.37,0.00013698,2]
[332038815,1720941049793,-500.0,0.00013698,2]
[332038818,1720941049803,-619.0,0.00013698,2]
[332038820,1720941049813,-500.0,0.00013698,2]
[332038821,1720941049822,-568.11,0.00013698,2]
[332038824,1720941049831,-545.98,0.00013698,2]
[332038826,1720941049841,-500.0,0.00013698,2]
[332038827,1720941049851,-500.0,0.00013698,2]
[332038829,1720941049861,-500.0,0.00013698,2]
[332038832,1720941049871,-500.0,0.00013698,2]
[332038834,1720941049881,-500.0,0.00013698,2]
[332038836,1720941049891,-500.0,0.00013698,2]
[332038838,1720941049900,-500.0,0.00013698,2]
[332038839,1720941049910,-514.91,0.00013698,2]
[332038840,1720941049920,-628.0,0.00013698,2]
[332038841,1720941049929,-1205.06,0.00013698,2]
[332038842,1720941049940,-500.0,0.00013698,2]
[332038843,1720941049950,-532.47,0.00013698,2]
[332038844,1720941049959,-500.0,0.00013698,2]
[332038846,1720941049969,-500.0,0.00013698,2]
[332038848,1720941049978,-327.54,0.00013698,2]
[332038850,1720941049987,-500.0,0.00013698,2]
[332038851,1720941049996,-1415.08,0.00013698,2]
[332038853,1720941050005,-500.0,0.00013698,2]
[332038855,1720941050014,-552.21,0.00013698,2]
[332038857,1720941050023,-1159.3,0.00013698,2]
[332038859,1720941050032,-1052.47,0.00013698,2]
[332038861,1720941050042,-2462.55,0.00013698,2]
[332038863,1720941050051,-500.0,0.00013698,2]
[332038864,1720941050060,-500.0,0.00013698,2]
[332038866,1720941050069,-694.25,0.00013698,2]
[332038868,1720941050078,-500.0,0.00013698,2]
[332038870,1720941050088,-500.0,0.00013698,2]
[332038872,1720941050097,-1017.05,0.00013698,2]
[332038874,1720941050107,-500.0,0.00013698,2]
[332038876,1720941050116,-728.74,0.00013698,2]
[332038878,1720941050125,-1225.62,0.00013698,2]
[332038880,1720941050134,-527.32,0.00013698,2]
[332038882,1720941050143,-500.0,0.00013698,2]
[332038884,1720941050153,-1046.91,0.00013698,2]
[332038886,1720941050162,-3639.89,0.00013698,2]
[332038888,1720941050171,-1566.86,0.00013698,2]
[332038890,1720941050180,-528.47,0.00013698,2]
[332038892,1720941050189,-642.95076981,0.00013698,2]
[332038894,1720941050197,-893.0,0.00013698,2]
[332038896,1720941050207,-500.0,0.00013698,2]
[332038898,1720941050216,-500.0,0.00013698,2]
[332038900,1720941050225,-500.0,0.00013698,2]
[332038902,1720941050234,-500.0,0.00013698,2]
[332038904,1720941050243,-1017.69,0.00013698,2]
[332038906,1720941050253,-5597.32,0.00013698,2]
[332038908,1720941050263,-500.0,0.00013698,2]
[332038910,1720941050271,-1492.25,0.00013698,2]
[332038912,1720941050280,-500.0,0.00013698,2]
[332038914,1720941050289,-500.0,0.00013698,2]
[332038916,1720941050298,-500.0,0.00013698,2]
[332038918,1720941050307,-500.0,0.00013698,2]
[332038920,1720941050317,-500.0,0.00013698,2]
[332038922,1720941050325,-1108.19,0.00013698,2]
[332038924,1720941050335,-500.0,0.00013698,2]
[332038926,1720941050344,-500.0,0.00013698,2]
[332038928,1720941050353,-913.82,0.00013698,2]
[332038930,1720941050362,-4399.2,0.00013698,2]
[332038932,1720941050371,-1968.84,0.00013698,2]
[332038934,1720941050380,-500.0,0.00013698,2]
[332038936,1720941050389,-500.0,0.00013698,2]
[332038938,1720941050398,-1676.99,0.00013698,2]
[332038940,1720941050406,-596.26,0.00013698,2]
[332038942,1720941050415,-747.18,0.00013698,2]
[332038944,1720941050424,-500.0,0.00013698,2]
[332038945,1720941050434,-919.45,0.00013698,2]
[332038948,1720941050444,-500.0,0.00013698,2]
[332038950,1720941050453,-500.0,0.00013698,2]
[332038952,1720941050463,-1174.19,0.00013698,2]
[332038954,1720941050472,-500.0,0.00013698,2]
[332038956,1720941050482,-500.0,0.00013698,2]
[332038958,1720941050492,-459.15,0.00013699,2]
[332038959,1720941050502,-289.44,0.00013699,2]
[332038961,1720941050512,-400.0,0.000137,5]
[332038963,1720941050521,-160.69,0.000137,2]
[332038965,1720941050531,-178.72658145,0.00013708,2]
[332038967,1720941050540,-500.0,0.00013752,2]
[332038969,1720941050549,-550.4432963,0.00013752,2]
[332038972,1720941050559,-500.0,0.00013752,2]
[332038974,1720941050568,-190.31709489,0.00013752,2]
[332038976,1720941050578,-500.0,0.00013752,2]
[332038978,1720941050588,-376.81084605,0.00013752,2]
[332038980,1720941050597,-500.0,0.00013752,2]
[332038982,1720941050607,-500.0,0.00013752,2]
[332038984,1720941050616,-500.0,0.00013752,2]
[332038986,1720941050625,-500.0,0.00013752,2]
[332038987,1720941050635,-500.0,0.00013753,2]
[332038990,1720941050647,-500.0,0.00013753,2]
[332038992,1720941050656,-427.7285558,0.00013753,2]
[332038994,1720941050666,-632.7,0.00013753,2]
[332038996,1720941050675,-500.0,0.00013753,2]
[332038998,1720941050686,-500.0,0.00013753,2]
[332039000,1720941050696,-177.98437988,0.00013753,2]
[332039002,1720941050705,-500.0,0.00013753,2]
[332039004,1720941050717,-500.0,0.00013753,2]
[332039006,1720941050727,-500.0,0.00013753,2]
[332039008,1720941050737,-500.0,0.00013753,2]
[332039010,1720941050747,-500.0,0.00013753,2]
[332039012,1720941050757,-500.0,0.00013753,2]
[332039014,1720941050767,-500.0,0.00013753,2]
[332039016,1720941050777,-631.62,0.00013753,2]
[332039018,1720941050787,-500.0,0.00013753,2]
[332039020,1720941050797,-500.0,0.00013753,2]
[332039022,1720941050807,-500.0,0.00013753,2]
[332039024,1720941050818,-500.0,0.00013753,2]
[332039026,1720941050827,-500.0,0.00013753,2]
[332039028,1720941050837,-190.03080981,0.00013753,2]
[332039030,1720941050847,-500.0,0.00013753,2]
[332039031,1720941050857,-500.0,0.00013753,2]
[332039032,1720941050866,-500.0,0.00013753,2]
[332039033,1720941050876,-827.47,0.00013753,2]
[332039034,1720941050886,-500.0,0.00013753,2]
[332039035,1720941050895,-500.0,0.00013753,2]
[332039036,1720941050905,-500.0,0.00013753,2]
[332039038,1720941050915,-500.0,0.00013753,2]
[332039040,1720941050924,-564.06,0.00013753,2]
[332039042,1720941050934,-500.0,0.00013753,2]
[332039044,1720941050944,-500.0,0.00013753,2]
[332039046,1720941050954,-500.0,0.00013753,2]
[332039048,1720941050964,-500.0,0.00013753,2]
[332039050,1720941050973,-500.0,0.00013753,2]
[332039052,1720941050983,-500.0,0.00013753,2]
[332039054,1720941050993,-500.0,0.00013753,2]
[332039056,1720941051009,-500.0,0.00013753,2]
[332039058,1720941051019,-611.58,0.00013753,2]
[332039060,1720941051029,-500.0,0.00013753,2]
[332039062,1720941051039,-500.0,0.00013753,2]
[332039064,1720941051048,-500.0,0.00013753,2]
[332039066,1720941051058,-552.08,0.00013753,2]
[332039068,1720941051068,-500.0,0.00013753,2]
[332039070,1720941051077,-500.0,0.00013753,2]
[332039072,1720941051087,-500.0,0.00013753,2]
[332039074,1720941051097,-500.0,0.00013753,2]
[332039076,1720941051107,-500.0,0.00013753,2]
[332039078,1720941051118,-500.0,0.00013753,2]
[332039081,1720941051133,-500.0,0.00013753,2]
[332039083,1720941051143,-641.58,0.00013753,2]
[332039085,1720941051153,-500.0,0.00013753,2]
[332039087,1720941051162,-884.14,0.00013753,2]
[332039088,1720941051172,-500.0,0.00013753,2]
[332039090,1720941051183,-500.0,0.00013753,2]
[332039092,1720941051192,-500.0,0.00013753,2]
[332039095,1720941051203,-500.0,0.00013753,2]
[332039097,1720941051213,-500.0,0.00013753,2]
[332039099,1720941051222,-500.0,0.00013753,2]
[332039100,1720941051232,-500.0,0.00013753,2]
[332039103,1720941051243,-581.31715773,0.00013753,2]
[332039105,1720941051255,-500.0,0.00013753,2]
[332039107,1720941051265,-500.0,0.00013753,2]
[332039109,1720941051274,-500.0,0.00013753,2]
[332039110,1720941051283,-500.0,0.00013753,2]
[332039113,1720941051293,-500.0,0.00013753,2]
[332039115,1720941051303,-870.84,0.00013753,2]
[332039117,1720941051313,-500.0,0.00013753,2]
[332039119,1720941051322,-500.0,0.00013753,2]
[332039121,1720941051332,-534.76,0.00013753,2]
[332039122,1720941051342,-500.0,0.00013753,2]
[332039124,1720941051351,-552.59,0.00013753,2]
[332039125,1720941051362,-500.0,0.00013753,2]
[332039127,1720941051372,-500.0,0.00013753,2]
[332039128,1720941051386,-618.47,0.00013753,2]
[332039130,1720941051398,-500.0,0.00013753,2]
[332039132,1720941051409,-500.0,0.00013753,2]
[332039133,1720941051418,-500.0,0.00013753,2]
[332039135,1720941051429,-500.0,0.00013753,2]
[332039136,1720941051439,-500.0,0.00013753,2]
[332039138,1720941051448,-500.0,0.00013753,2]
[332039139,1720941051458,-696.12,0.00013753,2]
[332039141,1720941051468,-500.0,0.00013753,2]
[332039142,1720941051478,-493.87126129,0.00013753,2]
[332039144,1720941051488,-500.0,0.00013753,2]
[332039145,1720941051498,-500.0,0.00013753,2]
[332039147,1720941051508,-595.42,0.00013753,2]
[332039149,1720941051518,-500.0,0.00013753,2]
[332039150,1720941051528,-500.0,0.00013753,2]
[332039152,1720941051538,-500.0,0.00013753,2]
[332039153,1720941051548,-500.0,0.00013753,2]
[332039155,1720941051558,-500.0,0.00013753,2]
[332039157,1720941051567,-500.0,0.00013753,2]
[332039158,1720941051577,-500.0,0.00013753,2]
[332039160,1720941051587,-500.0,0.00013753,2]
[332039162,1720941051597,-500.0,0.00013753,2]
[332039163,1720941051607,-500.0,0.00013753,2]
[332039165,1720941051617,-500.0,0.00013753,2]
[332039167,1720941051627,-500.0,0.00013753,2]
[332039168,1720941051637,-500.0,0.00013753,2]
[332039170,1720941051650,-500.0,0.00013753,2]
[332039172,1720941051660,-864.4,0.00013753,2]
[332039173,1720941051670,-518.23,0.00013753,2]
[332039175,1720941051680,-500.0,0.00013753,2]
[332039177,1720941051690,-500.0,0.00013753,2]
[332039178,1720941051700,-500.0,0.00013753,2]
[332039180,1720941051710,-500.0,0.00013753,2]
[332039181,1720941051720,-500.0,0.00013753,2]
[332039183,1720941051731,-500.0,0.00013753,2]
[332039185,1720941051741,-500.0,0.00013753,2]
[332039186,1720941051751,-500.0,0.00013753,2]
[332039188,1720941051761,-500.0,0.00013753,2]
[332039190,1720941051771,-500.0,0.00013753,2]
[332039191,1720941051781,-500.0,0.00013753,2]
[332039193,1720941051791,-500.0,0.00013753,2]
[332039195,1720941051801,-500.0,0.00013753,2]
[332039196,1720941051811,-500.0,0.00013753,2]
[332039198,1720941051821,-500.0,0.00013753,2]
[332039200,1720941051830,-500.0,0.00013753,2]
[332039201,1720941051840,-500.0,0.00013753,2]
[332039203,1720941051850,-500.0,0.00013753,2]
[332039205,1720941051860,-669.78,0.00013753,2]
[332039206,1720941051870,-500.0,0.00013753,2]
[332039208,1720941051879,-638.2,0.00013753,2]
[332039209,1720941051889,-223.57957344,0.00013753,2]
[332039211,1720941051899,-500.0,0.00013753,2]
[332039213,1720941051909,-500.0,0.00013753,2]
[332039214,1720941051919,-500.0,0.00013753,2]
[332039216,1720941051930,-952.4,0.00013753,2]
[332039218,1720941051940,-718.69,0.00013753,2]
[332039220,1720941051950,-500.0,0.00013753,2]
[332039222,1720941051961,-500.0,0.00013753,2]
[332039224,1720941051972,-500.0,0.00013753,2]
[332039226,1720941051983,-1010.42,0.00013753,2]
[332039227,1720941051992,-500.0,0.00013753,2]
[332039228,1720941052004,-662.1,0.00013753,2]
[332039229,1720941052014,-282.46740962,0.00013753,2]
[332039230,1720941052024,-548.55,0.00013753,2]
[332039231,1720941052034,-500.0,0.00013753,2]
[332039232,1720941052044,-500.0,0.00013753,2]
[332039233,1720941052053,-500.0,0.00013753,2]
[332039234,1720941052063,-796.7,0.00013753,2]
[332039235,1720941052073,-548.93,0.00013753,2]
[332039237,1720941052083,-500.0,0.00013753,2]
[332039238,1720941052092,-578.68,0.00013753,2]
[332039240,1720941052102,-500.0,0.00013753,2]
[332039242,1720941052114,-630.75,0.00013753,2]
[332039245,1720941052124,-666.55,0.00013753,2]
[332039247,1720941052134,-500.0,0.00013753,2]
[332039249,1720941052144,-500.0,0.00013753,2]
[332039251,1720941052155,-500.0,0.00013753,2]
[332039253,1720941052166,-500.0,0.00013753,2]
[332039255,1720941052175,-500.0,0.00013753,2]
[332039257,1720941052185,-500.0,0.00013753,2]
[332039259,1720941052194,-500.0,0.00013753,2]
[332039261,1720941052203,-500.0,0.00013753,2]
[332039263,1720941052212,-567.23,0.00013753,2]
[332039265,1720941052221,-500.0,0.00013753,2]
[332039267,1720941052231,-643.88,0.00013753,2]
[332039269,1720941052241,-500.0,0.00013753,2]
[332039271,1720941052251,-260.02729653,0.00013753,2]
[332039273,1720941052261,-801.98,0.00013753,2]
[332039275,1720941052271,-500.0,0.00013753,2]
[332039277,1720941052283,-500.0,0.00013753,2]
[332039279,1720941052292,-599.86,0.00013753,2]
[332039281,1720941052303,-500.0,0.00013753,2]
[332039283,1720941052313,-1582.65,0.00013753,2]
[332039285,1720941052323,-500.0,0.00013753,2]
[332039287,1720941052332,-500.0,0.00013753,2]
[332039289,1720941052341,-500.0,0.00013753,2]
[332039291,1720941052351,-703.38,0.00013753,2]
[332039293,1720941052360,-528.52,0.00013753,2]
[332039295,1720941052370,-500.0,0.00013753,2]
[332039297,1720941052379,-500.0,0.00013753,2]
[332039299,1720941052389,-500.0,0.00013753,2]
[332039301,1720941052399,-500.0,0.00013753,2]
[332039303,1720941052409,-513.65,0.00013753,2]
[332039305,1720941052418,-931.58,0.00013753,2]
[332039308,1720941052428,-500.0,0.00013753,2]
[332039310,1720941052438,-500.0,0.00013753,2]
[332039312,1720941052447,-500.0,0.00013753,2]
[332039314,1720941052456,-500.0,0.00013753,2]
[332039316,1720941052466,-500.0,0.00013753,2]
[332039318,1720941052475,-851.23,0.00013753,2]
[332039320,1720941052485,-500.0,0.00013753,2]
[332039322,1720941052494,-513.32068464,0.00013753,2]
[332039324,1720941052505,-500.0,0.00013753,2]
[332039326,1720941052515,-500.0,0.00013753,2]
[332039328,1720941052524,-500.0,0.00013753,2]
[332039330,1720941052534,-1850.58,0.00013753,2]
[332039332,1720941052543,-658.64,0.00013753,2]
[332039334,1720941052553,-500.0,0.00013753,2]
[332039336,1720941052563,-500.0,0.00013753,2]
[332039338,1720941052573,-1482.27,0.00013753,2]
[332039340,1720941052582,-500.0,0.00013753,2]
[332039342,1720941052591,-500.0,0.00013753,2]
[332039344,1720941052601,-500.0,0.00013753,2]
[332039346,1720941052611,-618.64,0.00013753,2]
[332039348,1720941052621,-678.07,0.00013753,2]
[332039350,1720941052630,-500.0,0.00013753,2]
[332039352,1720941052640,-500.0,0.00013753,2]
[332039354,1720941052653,-783.52,0.00013753,2]
[332039356,1720941052663,-500.0,0.00013753,2]
[332039358,1720941052672,-500.0,0.00013753,2]
[332039360,1720941052683,-500.0,0.00013753,2]
[332039362,1720941052693,-500.0,0.00013753,2]
[332039364,1720941052702,-500.0,0.00013753,2]
[332039366,1720941052711,-632.58106045,0.00013753,2]
[332039368,1720941052723,-500.0,0.00013753,2]
[332039370,1720941052733,-851.97,0.00013753,2]
[332039372,1720941052743,-694.56,0.00013753,2]
[332039374,1720941052752,-540.65,0.00013753,2]
[332039376,1720941052762,-540.0,0.00013753,2]
[332039378,1720941052771,-1133.95,0.00013753,2]
[332039404,1720941053007,-500.0,0.00013753,2]
[332039407,1720941053029,-892.61,0.00013753,2]
[332039409,1720941053039,-500.0,0.00013753,2]
[332039411,1720941053049,-500.0,0.00013753,2]
[332039413,1720941053058,-500.0,0.00013753,2]
[332039415,1720941053069,-926.44,0.00013753,2]
[332039417,1720941053079,-500.0,0.00013753,2]
[332039419,1720941053087,-500.0,0.00013753,2]
[332039421,1720941053098,-500.0,0.00013753,2]
[332039423,1720941053107,-500.0,0.00013753,2]
[332039425,1720941053116,-1041.93,0.00013753,2]
[332039427,1720941053126,-829.73,0.00013753,2]
[332039429,1720941053137,-500.0,0.00013753,2]
[332039431,1720941053146,-500.0,0.00013753,2]
[332039433,1720941053155,-500.0,0.00013753,2]
[332039435,1720941053165,-500.0,0.00013753,2]
[332039437,1720941053174,-645.8,0.00013753,2]
[332039439,1720941053184,-650.21,0.00013753,2]
[332039441,1720941053193,-930.59,0.00013753,2]
[332039443,1720941053203,-500.0,0.00013753,2]
[332039445,1720941053213,-821.09,0.00013753,2]
[332039447,1720941053224,-554.53293035,0.00013753,2]
[332039449,1720941053233,-500.0,0.00013753,2]
[332039451,1720941053242,-500.0,0.00013753,2]
[332039453,1720941053253,-528.32,0.00013753,2]
[332039455,1720941053262,-644.97,0.00013753,2]
[332039457,1720941053272,-500.0,0.00013753,2]
[332039459,1720941053281,-500.0,0.00013753,2]
[332039461,1720941053294,-1236.87,0.00013753,2]
[332039463,1720941053303,-1276.97,0.00013753,2]
[332039465,1720941053314,-227.51266937,0.00013753,2]
[332039467,1720941053323,-500.0,0.00013753,2]
[332039469,1720941053332,-539.76,0.00013753,2]
[332039471,1720941053341,-500.0,0.00013753,2]
[332039473,1720941053350,-500.0,0.00013753,2]
[332039475,1720941053360,-500.0,0.00013753,2]
[332039477,1720941053369,-500.0,0.00013753,2]
[332039479,1720941053378,-768.61,0.00013753,2]
[332039481,1720941053387,-1208.88,0.00013753,2]
[332039483,1720941053396,-500.0,0.00013753,2]
[332039485,1720941053406,-598.99,0.00013753,2]
[332039487,1720941053416,-500.0,0.00013753,2]
[332039489,1720941053425,-500.0,0.00013753,2]
[332039491,1720941053434,-1315.9,0.00013753,2]
[332039493,1720941053443,-500.0,0.00013753,2]
[332039495,1720941053452,-500.0,0.00013753,2]
[332039497,1720941053462,-905.92,0.00013753,2]
[332039499,1720941053471,-171.2345773,0.00013753,2]
[332039501,1720941053480,-500.0,0.00013753,2]
[332039503,1720941053490,-500.0,0.00013753,2]
[332039505,1720941053499,-734.08,0.00013753,2]
[332039507,1720941053508,-500.0,0.00013753,2]
[332039509,1720941053518,-952.32,0.00013753,2]
[332039511,1720941053528,-500.0,0.00013753,2]
[332039513,1720941053537,-500.0,0.00013753,2]
[332039515,1720941053546,-500.0,0.00013753,2]
[332039517,1720941053555,-835.64,0.00013753,2]
[332039519,1720941053565,-500.0,0.00013753,2]
[332039521,1720941053575,-500.0,0.00013753,2]
[332039522,1720941053584,-512.96556813,0.00013753,2]
[332039523,1720941053593,-500.0,0.00013753,2]
[332039524,1720941053602,-500.0,0.00013753,2]
[332039525,1720941053611,-375.45482402,0.00013753,2]
[332039526,1720941053620,-500.0,0.00013753,2]
[332039527,1720941053630,-500.0,0.00013753,2]
[332039528,1720941053640,-500.0,0.00013753,2]
[332039530,1720941053653,-208.54805441,0.00013753,2]
[332039532,1720941053662,-500.0,0.00013753,2]
[332039533,1720941053671,-706.34,0.00013753,2]
[332039535,1720941053680,-789.77,0.00013753,2]
[332039537,1720941053690,-500.0,0.00013753,2]
[332039539,1720941053699,-500.0,0.00013753,2]
[332039541,1720941053708,-605.59,0.00013753,2]
[332039543,1720941053720,-500.0,0.00013753,2]
[332039545,1720941053730,-500.0,0.00013753,2]
[332039547,1720941053739,-557.01,0.00013753,2]
[332039549,1720941053750,-500.0,0.00013753,2]
[332039551,1720941053760,-500.0,0.00013753,2]
[332039553,1720941053769,-500.0,0.00013753,2]
[332039555,1720941053779,-500.0,0.00013753,2]
[332039557,1720941053789,-1396.73,0.00013753,2]
[332039559,1720941053799,-500.0,0.00013753,2]
[332039561,1720941053809,-1240.09,0.00013753,2]
[332039564,1720941053819,-618.91,0.00013753,2]
[332039566,1720941053828,-500.0,0.00013753,2]
[332039567,1720941053837,-977.1,0.00013753,2]
[332039569,1720941053846,-500.0,0.00013753,2]
[332039571,1720941053856,-421.05830512,0.00013753,2]
[332039573,1720941053866,-630.82,0.00013753,2]
[332039575,1720941053875,-500.0,0.00013753,2]
[332039577,1720941053884,-500.0,0.00013753,2]
[332039579,1720941053894,-500.0,0.00013753,2]
[332039581,1720941053903,-500.0,0.00013753,2]
[332039583,1720941053913,-409.89596729,0.00013753,2]
[332039586,1720941053924,-965.34,0.00013753,2]
[332039587,1720941053934,-521.41,0.00013753,2]
[332039589,1720941053945,-1046.02,0.00013753,2]
[332039591,1720941053958,-500.0,0.00013753,2]
[332039593,1720941053968,-500.0,0.00013753,2]
[332039595,1720941053978,-500.0,0.00013753,2]
[332039597,1720941053988,-644.51706695,0.00013753,2]
[332039599,1720941053998,-1076.45,0.00013753,2]
[332039601,1720941054008,-500.0,0.00013753,2]
[332039603,1720941054017,-500.0,0.00013753,2]
[332039605,1720941054026,-500.0,0.00013753,2]
[332039607,1720941054036,-1778.25,0.00013753,2]
[332039609,1720941054046,-500.0,0.00013753,2]
[332039611,1720941054056,-500.0,0.00013753,2]
[332039613,1720941054066,-1701.47,0.00013753,2]
[332039615,1720941054076,-444.19859361,0.00013753,2]
[332039673,1720941054618,-43.94721206,0.00013753,2]
[332039675,1720941054628,-500.0,0.00013753,2]
[332039677,1720941054639,-500.0,0.00013753,2]
[332039679,1720941054653,-500.0,0.00013753,2]
[332039681,1720941054662,-554.1,0.00013753,2]
[332039683,1720941054672,-500.0,0.00013753,2]
[332039685,1720941054682,-631.21,0.00013753,2]
[332039687,1720941054693,-1335.42,0.00013753,2]
[332039689,1720941054703,-500.0,0.00013753,2]
[332039691,1720941054712,-500.0,0.00013753,2]
[332039693,1720941054723,-500.0,0.00013753,2]
[332039695,1720941054733,-500.0,0.00013753,2]
[332039697,1720941054742,-500.0,0.00013753,2]
[332039699,1720941054753,-188.40096823,0.00013753,2]
[332039701,1720941054762,-500.0,0.00013753,2]
[332039702,1720941054772,-812.37,0.00013753,2]
[332039704,1720941054781,-500.0,0.00013753,2]
[332039706,1720941054790,-500.0,0.00013753,2]
[332039708,1720941054800,-934.64,0.00013753,2]
[332039710,1720941054810,-501.05,0.00013753,2]
[332039712,1720941054819,-500.0,0.00013753,2]
[332039714,1720941054829,-500.0,0.00013753,2]
[332039716,1720941054838,-500.0,0.00013753,2]
[332039718,1720941054847,-626.13,0.00013753,2]
[332039720,1720941054857,-500.0,0.00013753,2]
[332039722,1720941054866,-1861.9,0.00013753,2]
[332039723,1720941054876,-601.59,0.00013753,2]
[332039725,1720941054885,-500.0,0.00013753,2]
[332039727,1720941054895,-474.26305367,0.00013753,2]
[332039729,1720941054905,-1053.89,0.00013753,2]
[332039731,1720941054915,-500.0,0.00013753,2]
[332039733,1720941054925,-500.0,0.00013753,2]
[332039736,1720941054935,-664.81,0.00013753,2]
[332039738,1720941054945,-680.37,0.00013753,2]
[332039740,1720941054955,-500.0,0.00013753,2]
[332039741,1720941054965,-500.0,0.00013753,2]
[332039744,1720941054975,-500.0,0.00013753,2]
[332039746,1720941054985,-895.33,0.00013753,2]
[332039748,1720941054995,-500.0,0.00013753,2]
[332039749,1720941055006,-1051.45,0.00013753,2]
[332039751,1720941055016,-500.0,0.00013753,2]
[332039753,1720941055026,-562.28,0.00013753,2]
[332039755,1720941055036,-500.0,0.00013753,2]
[332039757,1720941055045,-928.43,0.00013753,2]
[332039759,1720941055055,-500.0,0.00013753,2]
[332039761,1720941055065,-500.0,0.00013753,2]
[332039762,1720941055075,-500.0,0.00013753,2]
[332039763,1720941055084,-1607.28,0.00013753,2]
[332039764,1720941055093,-500.0,0.00013753,2]
[332039765,1720941055103,-500.0,0.00013753,2]
[332039766,1720941055112,-645.88,0.00013753,2]
[332039767,1720941055122,-500.0,0.00013753,2]
[332039768,1720941055131,-1043.48,0.00013753,2]
[332039770,1720941055141,-1435.37,0.00013753,2]